[Event "SWE-ch Masters Elite 2019"]
[Site "Eskilstuna"]
[Date "2019.07.09"]
[Round "4.1"]
[White "Cramling, Dan"]
[Black "Seo, Jung Min"]
[Result "0-1"]
[ECO "A28"]
[WhiteElo "2321"]
[BlackElo "2399"]
[Annotator "NA"]
[PlyCount "156"]
[EventDate "2019.07.06"]
[EventType "tourn"]
[EventCountry "SWE"]
[SourceTitle "playchess.com"]
[Source "ChessBase"]
[SourceQuality "1"]
[TimeControl "40/5400+30:1800+30"]

1. c4 {[%emt 0:10:22]} e5 {[%emt 0:01:12]} 2. Nc3 {[%emt 0:00:18]} Nc6 {[%emt 0:00:52]} 3. Nf3 {[%emt 0:01:13]} Nf6 {[%emt 0:02:52]} 4. e3 {[%emt 0:00:36]} Bb4 {[%emt 0:00:49]} 5. Qc2 {[%emt 0:00:17]} O-O {[%emt 0:00:54]} 6. Nd5 {[%emt 0:00:22]} Be7 {[%emt 0:01:29]} 7. a3 {[%emt 0:10:06]} h6 {[%emt 0:02:44]} 8. Be2 {[%emt 0:12:30]} d6 {[%emt 0:01:28]} 9. O-O {[%emt 0:01:47]} Re8 {[%emt 0:06:58]} 10. b4 {[%emt 0:04:00]} Bf8 {[%emt 0:17:08]} 11. Nxf6+ {[%emt 0:06:37]} Qxf6 {[%emt 0:00:15]} 12. Bb2 {[%emt 0:00:11]} Bf5 {[%emt 0:11:15]} 13. Qb3 {[%emt 0:01:19]} a6 {[%emt 0:03:27]} 14. Ne1 {[%emt 0:06:18]} Qg6 {[%emt 0:02:42]} 15. f4 {[%emt 0:01:26]} e4 {[%emt 0:06:57]} 16. Qd1 {[%emt 0:03:43]} Rad8 {[%emt 0:00:43]} 17. Kh1 {[%emt 0:02:00]} d5 {[%emt 0:02:12]} 18. b5 {[%emt 0:15:34]} axb5 {[%emt 0:08:28]} 19. cxb5 {[%emt 0:00:08]} Na5 {[%emt 0:02:00]} 20. Bc3 {[%emt 0:02:45]} Nc4 {[%emt 0:00:31]} 21. Nc2 {[%emt 0:02:47]} c5 {[%emt 0:04:05]} 22. bxc6 {[%emt 0:00:57]} bxc6 {[%emt 0:00:04]} 23. Nd4 {[%emt 0:01:02]} Bc8 {[%emt 0:00:58]} 24. f5 {[%emt 0:02:44]} Qd6 {[%emt 0:00:20]} 25. Bxc4 dxc4 {[%emt 0:00:01]} 26. Qa4 {[%emt 0:05:13]} c5 {[%emt 0:00:11]} 27. Ne2 {[%emt 0:01:29]} Qd5 {[%emt 0:01:56]} 28. f6 {[%emt 0:00:58]} g5 {[%emt 0:01:07]} 29. Qc2 {[%emt 0:04:13]} Bg4 {[%emt 0:01:53]} 30. Rf2 {[%emt 0:01:43]} Bd6 {[%emt 0:00:29]} 31. a4 {[%emt 0:01:04]} Bc7 {[%emt 0:00:21]} 32. a5 {[%emt 0:00:44]} Qd6 {[%emt 0:00:26]} 33. Ng3 {[%emt 0:00:19]} h5 {[%emt 0:00:09]} 34. Nf1 {[%emt 0:00:43]} Ra8 {[%emt 0:03:12]} 35. h3 {[%emt 0:00:26]} Bd7 {[%emt 0:00:25]} 36. Qd1 {[%emt 0:00:35]} g4 {[%emt 0:00:01]} 37. g3 {[%emt 0:00:57]} Qd5 {[%emt 0:00:53]} 38. h4 {[%emt 0:00:38]} Ra6 {[%emt 0:00:40]} 39. Ra3 {[%emt 0:00:42]} Rb8 {[%emt 0:01:04]} 40. Qa1 {[%emt 0:00:25]} Rb5 {[%emt 0:02:18]} 41. Kh2 {[%emt 0:06:40]} Rb3 {[%emt 0:01:28]} 42. Ra2 {[%emt 0:03:19]} Qb7 {[%emt 0:01:54]} 43. Be5 {[%emt 0:01:24]} Bd8 {[%emt 0:00:13]} 44. Qc1 {[%emt 0:02:20]} Qd5 {[%emt 0:04:23]} 45. Qa1 {[%emt 0:01:06]} Qd3 {[%emt 0:01:09]} 46. Kg2 {[%emt 0:00:54]} c3 {[%emt 0:02:14]} 47. Qc1 {[%emt 0:01:06]} Rxa5 {[%emt 0:04:13]} 48. Rc2 {[%emt 0:00:51]} Qd5 {[%emt 0:03:16]} 49. Bxc3 {[%emt 0:01:43]} Ra6 {[%emt 0:00:42]} 50. Rb2 {[%emt 0:02:14]} Kh7 {[%emt 0:03:09]} 51. Qc2 {[%emt 0:01:26]} c4 {[%emt 0:00:39]} 52. Ra2 {[%emt 0:00:39]} Rbb6 {[%emt 0:03:44]} 53. Rxa6 {[%emt 0:00:53]} Rxa6 {[%emt 0:00:01]} 54. Qb2 {[%emt 0:00:41]} Bc7 {[%emt 0:03:05]} 55. Re2 {[%emt 0:03:08]} Qb5 {[%emt 0:02:37]} 56. Qxb5 {[%emt 0:03:01]} Bxb5 {[%emt 0:00:01]} 57. Re1 {[%emt 0:00:27]} Ba4 {[%emt 0:05:21]} 58. Ra1 {[%emt 0:01:36]} Kg6 {[%emt 0:00:07]} 59. Kf2 {[%emt 0:00:28]} Bd8 {[%emt 0:00:10]} 60. Ke1 {[%emt 0:01:08]} Bxf6 {[%emt 0:00:08]} 61. Ra2 {[%emt 0:02:18]} Kf5 {[%emt 0:01:05]} 62. Ra1 {[%emt 0:01:40]} Ke6 {[%emt 0:00:24]} 63. Ra2 {[%emt 0:00:15]} Be5 {[%emt 0:00:36]} 64. Ra1 {[%emt 0:00:17]} f5 {[%emt 0:01:18]} 65. Ra2 {[%emt 0:00:09]} Kd5 {[%emt 0:00:15]} 66. Ra1 {[%emt 0:00:26]} Bd6 {[%emt 0:00:20]} 67. Ra2 {[%emt 0:00:18]} Kc6 {[%emt 0:00:05]} 68. Ra1 {[%emt 0:01:13]} Kb5 {[%emt 0:00:07]} 69. Bg7 {[%emt 0:01:59]} Bb4 {[%emt 0:00:19]} 70. Be5 {[%emt 0:00:46]} Rc6 {[%emt 0:00:07]} 71. Ra2 {[%emt 0:00:39]} Rc8 {[%emt 0:00:48]} 72. Ra1 {[%emt 0:00:41]} Bc2 {[%emt 0:01:01]} 73. Ra7 {[%emt 0:00:23]} Bd3 {[%emt 0:02:15]} 74. Rh7 {[%emt 0:01:08]} Bxf1 75. Kxf1 {[%emt 0:00:01]} Bxd2 {[%emt 0:00:51]} 76. Rxh5 {[%emt 0:00:07]} c3 {[%emt 0:00:12]} 77. Ke2 {[%emt 0:00:40]} Rc5 {[%emt 0:00:31]} 78. Bd4 {[%emt 0:01:06]} c2 {[%emt 0:00:16]} 0-1

[Event "SWE-ch Masters Elite 2019"]
[Site "Eskilstuna"]
[Date "2019.07.09"]
[Round "4.2"]
[White "Lindberg, Bengt"]
[Black "Rydstrom, Tom"]
[Result "1-0"]
[ECO "C92"]
[WhiteElo "2384"]
[BlackElo "2345"]
[Annotator "NA"]
[PlyCount "71"]
[EventDate "2019.07.06"]
[EventType "tourn"]
[EventCountry "SWE"]
[SourceTitle "playchess.com"]
[Source "ChessBase"]
[SourceQuality "1"]
[TimeControl "40/5400+30:1800+30"]

1. e4 {[%emt 0:00:00]} e5 {[%emt 0:00:00]} 2. Nf3 {[%emt 0:00:00]} Nc6 {[%emt 0:00:00]} 3. Bb5 {[%emt 0:00:00]} a6 {[%emt 0:00:00]} 4. Ba4 {[%emt 0:00:00]} Nf6 {[%emt 0:00:00]} 5. O-O {[%emt 0:00:00]} Be7 {[%emt 0:00:11]} 6. Re1 {[%emt 0:00:08]} b5 {[%emt 0:00:04]} 7. Bb3 {[%emt 0:00:05]} d6 {[%emt 0:00:28]} 8. c3 {[%emt 0:00:06]} O-O {[%emt 0:01:09]} 9. h3 {[%emt 0:00:06]} Re8 {[%emt 0:04:13]} 10. d4 {[%emt 0:02:23]} Bb7 {[%emt 0:00:04]} 11. Nbd2 {[%emt 0:02:42]} exd4 {[%emt 0:08:02]} 12. cxd4 {[%emt 0:01:02]} Nb4 {[%emt 0:00:13]} 13. Ng5 {[%emt 0:30:56]} d5 {[%emt 0:14:08]} 14. e5 {[%emt 0:00:49]} Nd7 {[%emt 0:02:17]} 15. Nxf7 {[%emt 0:11:13]} Kxf7 {[%emt 0:00:03]} 16. e6+ {[%emt 0:03:46]} Kg8 {[%emt 0:00:02]} 17. exd7 {[%emt 0:00:06]} Qxd7 {[%emt 0:00:05]} 18. Nf3 {[%emt 0:00:07]} Bf6 {[%emt 0:16:44]} 19. Ne5 {[%emt 0:01:16]} Bxe5 {[%emt 0:00:44]} 20. dxe5 {[%emt 0:01:38]} a5 {[%emt 0:00:06]} 21. a3 {[%emt 0:00:52]} Na6 {[%emt 0:00:04]} 22. Bc2 {[%emt 0:01:50]} c5 {[%emt 0:07:16]} 23. Qd3 {[%emt 0:03:38]} g6 {[%emt 0:00:13]} 24. Qg3 {[%emt 0:00:04]} d4 {[%emt 0:01:19]} 25. Bh6 {[%emt 0:01:33]} Nc7 {[%emt 0:22:47]} 26. f4 {[%emt 0:12:32]} Kh8 {[%emt 0:09:09]} 27. f5 {[%emt 0:06:23]} Nd5 {[%emt 0:08:26]} 28. fxg6 {[%emt 0:10:22]} Ra6 {[%emt 0:00:24]} 29. e6 {[%emt 0:04:09]} Raxe6 {[%emt 0:00:16]} 30. Bf5 {[%emt 0:00:55]} Ne3 {[%emt 0:01:41]} 31. Bxe3 {[%emt 0:01:42]} dxe3 {[%emt 0:00:05]} 32. Rad1 {[%emt 0:01:10]} Qe7 {[%emt 0:01:23]} 33. Bxe6 {[%emt 0:00:41]} Qxe6 {[%emt 0:00:03]} 34. Rd3 {[%emt 0:00:33]} e2 {[%emt 0:00:46]} 35. Rd2 {[%emt 0:00:11]} Qc4 {[%emt 0:02:08]} 36. Qf2 {[%emt 0:01:45]} 1-0

[Event "SWE-ch Masters Elite 2019"]
[Site "Eskilstuna"]
[Date "2019.07.09"]
[Round "4.3"]
[White "Ernst, Thomas"]
[Black "Andersson, Tommy"]
[Result "0-1"]
[ECO "D55"]
[WhiteElo "2335"]
[BlackElo "2390"]
[Annotator "NA"]
[PlyCount "57"]
[EventDate "2019.07.06"]
[EventType "tourn"]
[EventCountry "SWE"]
[SourceTitle "playchess.com"]
[Source "ChessBase"]
[SourceQuality "1"]
[TimeControl "40/5400+30:1800+30"]

1. d4 {[%emt 0:00:00]} Nf6 {[%emt 0:00:34]} 2. c4 {[%emt 0:00:00]} e6 {[%emt 0:03:54]} 3. Nc3 {[%emt 0:00:00]} d5 {[%emt 0:03:52]} 4. Bg5 {[%emt 0:00:15]} Be7 {[%emt 0:00:28]} 5. e3 {[%emt 0:00:25]} O-O {[%emt 0:00:43]} 6. Nf3 {[%emt 0:00:24]} b6 {[%emt 0:00:42]} 7. Be2 {[%emt 0:05:34]} Bb7 {[%emt 0:02:40]} 8. Bxf6 {[%emt 0:00:17]} Bxf6 {[%emt 0:00:07]} 9. cxd5 {[%emt 0:00:09]} exd5 {[%emt 0:00:39]} 10. b4 {[%emt 0:00:13]} c6 {[%emt 0:09:07]} 11. O-O {[%emt 0:05:05]} a5 {[%emt 0:01:36]} 12. b5 {[%emt 0:02:09]} c5 {[%emt 0:00:58]} 13. Ne5 {[%emt 0:01:10]} Qd6 {[%emt 0:36:03]} 14. f4 {[%emt 0:20:13]} Rd8 {[%emt 0:01:32]} 15. Bf3 {[%emt 0:07:25]} Ra7 {[%emt 0:04:19]} 16. Rc1 {[%emt 0:16:39]} g6 {[%emt 0:03:32]} 17. Qb3 {[%emt 0:08:13]} c4 {[%emt 0:06:00]} 18. Qc2 {[%emt 0:05:09]} Bg7 {[%emt 0:01:38]} 19. Rcd1 {[%emt 0:09:45]} f6 {[%emt 0:09:57]} 20. e4 {[%emt 0:02:37]} fxe5 {[%emt 0:04:36]} 21. fxe5 {[%emt 0:00:23]} Bxe5 {[%emt 0:01:08]} 22. dxe5 {[%emt 0:00:07]} Qc5+ {[%emt 0:00:30]} 23. Qf2 {[%emt 0:11:17]} d4 {[%emt 0:01:48]} 24. Nd5 {[%emt 0:01:14]} d3 {[%emt 0:01:25]} 25. Nxb6 {[%emt 0:01:28]} Qxb5 {[%emt 0:04:03]} 26. Bg4 {[%emt 0:01:07]} Qe8 {[%emt 0:00:30]} 27. Nd5 {[%emt 0:01:21]} Bxd5 {[%emt 0:00:29]} 28. exd5 {[%emt 0:00:44]} Rf7 {[%emt 0:00:19]} 29. Qxf7+ {[%emt 0:00:00]} 0-1

[Event "SWE-ch Masters Elite 2019"]
[Site "Eskilstuna"]
[Date "2019.07.09"]
[Round "4.4"]
[White "Logdahl, Harald"]
[Black "Nyander, Joakim"]
[Result "0-1"]
[ECO "B23"]
[WhiteElo "2269"]
[BlackElo "2233"]
[Annotator "NA"]
[PlyCount "66"]
[EventDate "2019.07.06"]
[EventType "tourn"]
[EventCountry "SWE"]
[SourceTitle "playchess.com"]
[Source "ChessBase"]
[SourceQuality "1"]
[TimeControl "40/5400+30:1800+30"]

1. e4 {[%emt 0:00:00]} c5 {[%emt 0:00:00]} 2. Nc3 {[%emt 0:00:00]} a6 {[%emt 0:00:39]} 3. g3 {[%emt 0:01:18]} b5 {[%emt 0:00:42]} 4. Bg2 {[%emt 0:00:07]} Bb7 {[%emt 0:00:24]} 5. d3 {[%emt 0:00:22]} e6 {[%emt 0:00:58]} 6. f4 {[%emt 0:01:38]} b4 {[%emt 0:02:40]} 7. Nb1 {[%emt 0:02:32]} d5 {[%emt 0:01:42]} 8. Nh3 {[%emt 0:00:46]} Nf6 {[%emt 0:02:47]} 9. Nf2 {[%emt 0:00:38]} Nc6 {[%emt 0:02:15]} 10. O-O {[%emt 0:03:10]} Be7 {[%emt 0:00:43]} 11. Nd2 {[%emt 0:03:39]} a5 {[%emt 0:02:16]} 12. e5 {[%emt 0:04:43]} Nd7 {[%emt 0:00:18]} 13. Nf3 {[%emt 0:00:23]} Qc7 {[%emt 0:02:48]} 14. Re1 {[%emt 0:01:04]} a4 {[%emt 0:07:39]} 15. h4 {[%emt 0:23:12]} Nd4 {[%emt 0:05:47]} 16. Nxd4 {[%emt 0:10:00]} cxd4 {[%emt 0:02:07]} 17. Bd2 {[%emt 0:00:40]} O-O {[%emt 0:02:05]} 18. h5 {[%emt 0:00:46]} Rfc8 {[%emt 0:03:59]} 19. Rc1 {[%emt 0:00:08]} Qb6 {[%emt 0:00:47]} 20. Bh3 {[%emt 0:03:21]} Rc7 {[%emt 0:04:03]} 21. f5 {[%emt 0:01:28]} exf5 {[%emt 0:03:27]} 22. Bxf5 {[%emt 0:00:14]} Nf8 {[%emt 0:00:48]} 23. Ng4 {[%emt 0:10:14]} Bc8 {[%emt 0:03:24]} 24. Rf1 {[%emt 0:05:31]} Bxf5 {[%emt 0:04:09]} 25. Rxf5 {[%emt 0:02:55]} Rac8 {[%emt 0:00:37]} 26. Qf3 {[%emt 0:01:55]} Qe6 {[%emt 0:01:32]} 27. Rf1 {[%emt 0:00:45]} Rxc2 {[%emt 0:03:45]} 28. Rxf7 {[%emt 0:01:57]} Rxd2 {[%emt 0:01:54]} 29. h6 {[%emt 0:05:20]} g6 {[%emt 0:07:46]} 30. Rg7+ {[%emt 0:13:04]} Kh8 {[%emt 0:00:04]} 31. Rf7 {[%emt 0:00:19]} Nd7 {[%emt 0:02:34]} 32. Qf4 {[%emt 0:00:44]} Rxb2 {[%emt 0:03:16]} 33. Qxd4 {[%emt 0:00:42]} Bc5 {[%emt 0:02:27]} 0-1

[Event "SWE-ch Masters Elite 2019"]
[Site "Eskilstuna"]
[Date "2019.07.09"]
[Round "4.5"]
[White "Wengholm, Anders"]
[Black "Malmstig, Erik"]
[Result "1-0"]
[ECO "A25"]
[WhiteElo "2219"]
[BlackElo "2357"]
[Annotator "NA"]
[PlyCount "81"]
[EventDate "2019.07.06"]
[EventType "tourn"]
[EventCountry "SWE"]
[SourceTitle "playchess.com"]
[Source "ChessBase"]
[SourceQuality "1"]
[TimeControl "40/5400+30:1800+30"]

1. c4 {[%emt 0:00:08]} e5 {[%emt 0:00:06]} 2. Nc3 {[%emt 0:00:44]} Nc6 {[%emt 0:00:25]} 3. g3 {[%emt 0:00:47]} Nf6 {[%emt 0:01:02]} 4. Bg2 {[%emt 0:00:44]} Bc5 {[%emt 0:00:48]} 5. e3 {[%emt 0:17:12]} O-O {[%emt 0:02:05]} 6. a3 {[%emt 0:00:38]} a5 {[%emt 0:02:29]} 7. Nge2 {[%emt 0:01:36]} Re8 {[%emt 0:07:41]} 8. O-O {[%emt 0:05:18]} d6 {[%emt 0:10:14]} 9. d3 {[%emt 0:00:13]} Bg4 {[%emt 0:02:58]} 10. h3 {[%emt 0:00:09]} Bd7 {[%emt 0:00:40]} 11. Kh2 {[%emt 0:00:37]} Qc8 {[%emt 0:01:21]} 12. b3 {[%emt 0:01:59]} Ne7 {[%emt 0:04:58]} 13. e4 {[%emt 0:18:42]} h5 {[%emt 0:27:41]} 14. f4 {[%emt 0:06:48]} exf4 {[%emt 0:00:50]} 15. gxf4 {[%emt 0:00:22]} Ng6 {[%emt 0:10:11]} 16. Qe1 {[%emt 0:05:34]} Bc6 {[%emt 0:03:35]} 17. Bf3 {[%emt 0:11:28]} Qd8 {[%emt 0:06:41]} 18. Qg3 {[%emt 0:01:25]} h4 {[%emt 0:05:09]} 19. Qg2 {[%emt 0:00:42]} Nh7 {[%emt 0:01:42]} 20. d4 {[%emt 0:06:13]} Ba7 {[%emt 0:01:51]} 21. f5 {[%emt 0:03:17]} Ngf8 {[%emt 0:00:16]} 22. Be3 {[%emt 0:00:54]} Qf6 {[%emt 0:05:54]} 23. Rg1 {[%emt 0:01:20]} Kh8 {[%emt 0:01:52]} 24. Rad1 {[%emt 0:04:47]} g6 {[%emt 0:00:52]} 25. Nf4 {[%emt 0:00:36]} g5 {[%emt 0:00:30]} 26. Nfd5 {[%emt 0:03:36]} Bxd5 {[%emt 0:00:24]} 27. Nxd5 {[%emt 0:00:04]} Qd8 {[%emt 0:00:31]} 28. Bxg5 {[%emt 0:00:47]} Nxg5 {[%emt 0:00:08]} 29. Qxg5 {[%emt 0:00:03]} Qxg5 {[%emt 0:00:12]} 30. Rxg5 {[%emt 0:00:05]} Nh7 {[%emt 0:00:26]} 31. Rh5 {[%emt 0:02:03]} Rg8 {[%emt 0:00:17]} 32. Nxc7 {[%emt 0:01:47]} Rg3 {[%emt 0:00:36]} 33. Nxa8 {[%emt 0:01:26]} Rxf3 {[%emt 0:00:06]} 34. Rxh4 {[%emt 0:00:41]} Rxb3 {[%emt 0:00:43]} 35. Nc7 {[%emt 0:00:43]} Rb2+ {[%emt 0:00:36]} 36. Kh1 {[%emt 0:00:08]} f6 {[%emt 0:01:24]} 37. Ne8 {[%emt 0:00:32]} Kg8 {[%emt 0:00:36]} 38. Rg1+ {[%emt 0:00:37]} Kf8 {[%emt 0:00:32]} 39. Rxh7 {[%emt 0:00:27]} Bxd4 {[%emt 0:00:05]} 40. Rh8+ {[%emt 0:00:12]} Ke7 {[%emt 0:00:05]} 41. Rg7+ {[%emt 0:30:17]} 1-0

[Event "SWE-ch Masters Elite 2019"]
[Site "Eskilstuna"]
[Date "2019.07.10"]
[Round "5.1"]
[White "Rydstrom, Tom"]
[Black "Cramling, Dan"]
[Result "1-0"]
[ECO "B06"]
[WhiteElo "2345"]
[BlackElo "2321"]
[Annotator "NA"]
[PlyCount "71"]
[EventDate "2019.07.06"]
[EventType "tourn"]
[EventCountry "SWE"]
[SourceTitle "playchess.com"]
[Source "ChessBase"]
[SourceQuality "1"]
[TimeControl "40/5400+30:1800+30"]

1. e4 {[%emt 0:00:00]} g6 {[%emt 0:01:25]} 2. d4 {[%emt 0:01:28]} Bg7 {[%emt 0:00:29]} 3. Nc3 {[%emt 0:00:40]} d6 {[%emt 0:00:22]} 4. Be3 {[%emt 0:00:57]} a6 {[%emt 0:00:34]} 5. Qd2 {[%emt 0:00:19]} b5 {[%emt 0:00:29]} 6. O-O-O {[%emt 0:01:17]} Bb7 {[%emt 0:01:51]} 7. f3 {[%emt 0:00:05]} Nd7 {[%emt 0:00:42]} 8. Kb1 {[%emt 0:00:25]} Rc8 {[%emt 0:01:55]} 9. g4 {[%emt 0:00:06]} h6 {[%emt 0:05:10]} 10. h4 {[%emt 0:01:30]} c5 {[%emt 0:17:55]} 11. Bh3 {[%emt 0:14:09]} b4 {[%emt 0:13:10]} 12. Nce2 {[%emt 0:01:23]} e6 {[%emt 0:00:45]} 13. g5 {[%emt 0:01:08]} hxg5 {[%emt 0:12:53]} 14. hxg5 {[%emt 0:00:30]} Qc7 {[%emt 0:00:47]} 15. d5 {[%emt 0:00:26]} exd5 {[%emt 0:01:10]} 16. exd5 {[%emt 0:00:06]} Nb6 {[%emt 0:04:10]} 17. Ng3 {[%emt 0:04:45]} Rd8 {[%emt 0:01:23]} 18. Re1 {[%emt 0:06:46]} Kf8 {[%emt 0:03:07]} 19. Qf2 {[%emt 0:13:21]} Na4 {[%emt 0:07:36]} 20. Bc1 {[%emt 0:15:03]} Bxd5 {[%emt 0:01:25]} 21. N1e2 {[%emt 0:00:02]} c4 {[%emt 0:10:59]} 22. f4 {[%emt 0:05:05]} Qa5 {[%emt 0:04:40]} 23. Bg2 {[%emt 0:09:48]} Rxh1 {[%emt 0:03:09]} 24. Bxh1 {[%emt 0:00:09]} Bxh1 {[%emt 0:01:23]} 25. Rxh1 {[%emt 0:00:02]} Ne7 {[%emt 0:00:18]} 26. Rf1 {[%emt 0:12:20]} Rc8 {[%emt 0:03:13]} 27. Nd4 {[%emt 0:05:02]} Qd5 {[%emt 0:00:27]} 28. Be3 {[%emt 0:00:46]} Re8 {[%emt 0:01:32]} 29. f5 {[%emt 0:01:19]} Nxf5 {[%emt 0:00:52]} 30. Ngxf5 {[%emt 0:00:19]} gxf5 {[%emt 0:00:01]} 31. Nxf5 {[%emt 0:00:57]} Bxb2 {[%emt 0:00:08]} 32. g6 {[%emt 0:01:37]} Be5 {[%emt 0:01:22]} 33. Bh6+ {[%emt 0:01:41]} Kg8 {[%emt 0:00:10]} 34. gxf7+ {[%emt 0:01:05]} Qxf7 {[%emt 0:00:07]} 35. Qg2+ {[%emt 0:01:00]} Kh8 {[%emt 0:00:48]} 36. Bd2 {[%emt 0:00:01]} 1-0

[Event "SWE-ch Masters Elite 2019"]
[Site "Eskilstuna"]
[Date "2019.07.10"]
[Round "5.2"]
[White "Seo, Jung Min"]
[Black "Ernst, Thomas"]
[Result "1-0"]
[ECO "C77"]
[WhiteElo "2399"]
[BlackElo "2335"]
[Annotator "NA"]
[PlyCount "69"]
[EventDate "2019.07.06"]
[EventType "tourn"]
[EventCountry "SWE"]
[SourceTitle "playchess.com"]
[Source "ChessBase"]
[SourceQuality "1"]
[TimeControl "40/5400+30:1800+30"]

1. e4 {[%emt 0:00:00]} e5 {[%emt 0:00:00]} 2. Nf3 {[%emt 0:00:10]} Nc6 {[%emt 0:00:00]} 3. Bb5 {[%emt 0:00:05]} a6 {[%emt 0:00:00]} 4. Ba4 {[%emt 0:00:02]} Nf6 {[%emt 0:00:01]} 5. d3 {[%emt 0:01:49]} d6 {[%emt 0:01:20]} 6. c3 {[%emt 0:00:43]} g6 {[%emt 0:01:43]} 7. O-O {[%emt 0:02:11]} Bg7 {[%emt 0:00:12]} 8. Re1 {[%emt 0:00:37]} Bd7 {[%emt 0:06:00]} 9. Nbd2 {[%emt 0:00:56]} O-O {[%emt 0:00:15]} 10. Nf1 {[%emt 0:00:12]} b5 {[%emt 0:04:23]} 11. Bc2 {[%emt 0:03:45]} d5 {[%emt 0:02:01]} 12. Ng3 {[%emt 0:13:47]} h6 {[%emt 0:09:47]} 13. Qe2 {[%emt 0:25:13]} Re8 {[%emt 0:04:44]} 14. Be3 {[%emt 0:01:25]} Be6 {[%emt 0:04:26]} 15. h3 {[%emt 0:01:42]} Kh7 {[%emt 0:09:55]} 16. a4 {[%emt 0:10:09]} Qd7 {[%emt 0:05:41]} 17. Red1 {[%emt 0:06:06]} d4 {[%emt 0:16:00]} 18. Bd2 {[%emt 0:00:47]} Qe7 {[%emt 0:03:17]} 19. Rdc1 {[%emt 0:01:13]} Nd7 {[%emt 0:02:38]} 20. Bd1 {[%emt 0:02:10]} Qd6 {[%emt 0:01:30]} 21. h4 {[%emt 0:06:13]} Red8 {[%emt 0:06:52]} 22. cxd4 {[%emt 0:04:10]} exd4 {[%emt 0:00:23]} 23. h5 {[%emt 0:00:10]} Bg4 {[%emt 0:06:32]} 24. Ng5+ {[%emt 0:03:38]} hxg5 {[%emt 0:00:05]} 25. Qxg4 {[%emt 0:00:35]} Bh6 {[%emt 0:01:06]} 26. hxg6+ {[%emt 0:01:13]} Qxg6 {[%emt 0:00:29]} 27. Nf5 {[%emt 0:00:27]} Nce5 {[%emt 0:00:47]} 28. Qh3 {[%emt 0:00:31]} c5 {[%emt 0:00:12]} 29. f4 {[%emt 0:00:58]} g4 {[%emt 0:00:24]} 30. Qxh6+ {[%emt 0:01:18]} Qxh6 {[%emt 0:00:05]} 31. Nxh6 {[%emt 0:00:02]} Nxd3 {[%emt 0:00:13]} 32. Nxf7 {[%emt 0:00:08]} Nxc1 {[%emt 0:00:14]} 33. Rxc1 {[%emt 0:02:31]} Rf8 {[%emt 0:00:39]} 34. Ng5+ {[%emt 0:00:26]} Kg6 {[%emt 0:00:12]} 35. Bxg4 {[%emt 0:00:13]} 1-0

[Event "SWE-ch Masters Elite 2019"]
[Site "Eskilstuna"]
[Date "2019.07.10"]
[Round "5.3"]
[White "Nyander, Joakim"]
[Black "Lindberg, Bengt"]
[Result "1/2-1/2"]
[ECO "A14"]
[WhiteElo "2233"]
[BlackElo "2384"]
[Annotator "NA"]
[PlyCount "57"]
[EventDate "2019.07.06"]
[EventType "tourn"]
[EventCountry "SWE"]
[SourceTitle "playchess.com"]
[Source "ChessBase"]
[SourceQuality "1"]
[TimeControl "40/5400+30:1800+30"]

1. c4 {[%emt 0:00:00]} Nf6 {[%emt 0:00:00]} 2. g3 {[%emt 0:00:11]} e6 {[%emt 0:00:00]} 3. Bg2 {[%emt 0:00:56]} d5 {[%emt 0:00:05]} 4. Nf3 {[%emt 0:00:46]} Be7 {[%emt 0:00:08]} 5. O-O {[%emt 0:01:09]} O-O {[%emt 0:00:10]} 6. b3 {[%emt 0:01:04]} c5 {[%emt 0:00:24]} 7. Bb2 {[%emt 0:00:36]} Nc6 {[%emt 0:02:49]} 8. e3 {[%emt 0:00:42]} d4 {[%emt 0:01:58]} 9. exd4 {[%emt 0:04:50]} cxd4 {[%emt 0:00:06]} 10. Re1 {[%emt 0:01:03]} Bc5 {[%emt 0:04:57]} 11. d3 {[%emt 0:09:10]} Re8 {[%emt 0:04:23]} 12. Ne5 {[%emt 0:01:46]} Nxe5 {[%emt 0:01:14]} 13. Rxe5 {[%emt 0:00:04]} Qd6 {[%emt 0:00:48]} 14. f4 {[%emt 0:04:23]} Rb8 {[%emt 0:07:09]} 15. Nd2 {[%emt 0:11:36]} b6 {[%emt 0:04:40]} 16. Ne4 {[%emt 0:06:14]} Nxe4 {[%emt 0:00:08]} 17. Rxe4 {[%emt 0:00:10]} Bb7 {[%emt 0:12:34]} 18. Re5 {[%emt 0:02:09]} f6 {[%emt 0:03:32]} 19. Re2 {[%emt 0:04:00]} Bxg2 {[%emt 0:00:21]} 20. Kxg2 {[%emt 0:00:25]} b5 {[%emt 0:02:23]} 21. Rc1 {[%emt 0:05:59]} bxc4 {[%emt 0:03:57]} 22. Rxc4 {[%emt 0:00:31]} e5 {[%emt 0:07:36]} 23. fxe5 {[%emt 0:07:21]} fxe5 {[%emt 0:00:17]} 24. Re4 {[%emt 0:02:13]} Rf8 {[%emt 0:10:47]} 25. Qe2 {[%emt 0:07:12]} Rbe8 {[%emt 0:03:45]} 26. Rc1 {[%emt 0:00:49]} Re7 {[%emt 0:02:04]} 27. Rf1 {[%emt 0:03:25]} Rxf1 {[%emt 0:02:57]} 28. Qxf1 {[%emt 0:00:43]} Ba3 {[%emt 0:02:48]} 29. Bxa3 {[%emt 0:05:03]} 1/2-1/2